[Event "Titled Tuesday Blitz February 15 Early 2022"]
[White "Samarth, J Rao"]
[Black "Miszler, Levente"]
[WhiteFideId "46652370"]
[BlackFideId "763276"]
[WhiteElo "1514"]
[BlackElo "1966"]
[Result "1-0"]
[Round "02"]
[TimeControl "180+1"]
[Date "2022.02.15"]
[WhiteClock "0:01:49"]
[BlackClock "0:01:33"]

1. c4 {[%clk 0:02:43]}  c5 {[%clk 0:02:57]} 2. e3 {[%clk 0:02:42]}  Nc6 {[%clk 0:02:56]} 3. d4 {[%clk 0:02:42]}  cxd4 {[%clk 0:02:56]} 4. exd4 {[%clk 0:02:43]}  d5 {[%clk 0:02:56]} 5. cxd5 {[%clk 0:02:41]}  Qxd5 {[%clk 0:02:56]} 6. Nf3 {[%clk 0:02:41]}  Bg4 {[%clk 0:02:51]} 7. Be2 {[%clk 0:02:41]}  e6 {[%clk 0:02:49]} 8. Nc3 {[%clk 0:02:40]}  Bb4 {[%clk 0:02:48]} 9. O-O {[%clk 0:02:40]}  Qd7 {[%clk 0:02:46]} 10. a3 {[%clk 0:02:37]}  Ba5 {[%clk 0:02:45]} 11. Ne4 {[%clk 0:02:36]}  Bxf3 {[%clk 0:02:38]} 12. Bxf3 {[%clk 0:02:33]}  Nxd4 {[%clk 0:02:29]} 13. Bf4 {[%clk 0:02:13]}  Ne7 {[%clk 0:02:12]} 14. Nd6+ {[%clk 0:02:10]}  Kf8 {[%clk 0:02:03]} 15. Qxd4 {[%clk 0:02:09]}  Bb6 {[%clk 0:02:02]} 16. Qc3 {[%clk 0:02:00]}  Ng6 {[%clk 0:01:54]} 17. Bg3 {[%clk 0:02:00]}  Rd8 {[%clk 0:01:38]} 18. Rfd1 {[%clk 0:01:59]}  e5 {[%clk 0:01:36]} 19. Nxb7 {[%clk 0:01:53]}  Qxb7 {[%clk 0:01:33]} 20. Bxb7 {[%clk 0:01:49]} 1-0


[Site "https://www.chess.com"]

[Event "Titled Tuesday Blitz February 15 Early 2022"]
[White "Sanal, Vahap"]
[Black "Sargsyan, Anna M."]
[WhiteFideId "6300545"]
[BlackFideId "13308130"]
[WhiteElo "2603"]
[BlackElo "2271"]
[Result "1-0"]
[Round "02"]
[TimeControl "180+1"]
[Date "2022.02.15"]
[WhiteClock "0:00:31"]
[BlackClock "0:00:30"]

1. e4 {[%clk 0:03:00]}  c6 {[%clk 0:02:59]} 2. Nf3 {[%clk 0:03:00]}  d5 {[%clk 0:03:00]} 3. d3 {[%clk 0:03:00]}  g6 {[%clk 0:02:57]} 4. Qe2 {[%clk 0:03:00]}  Bg7 {[%clk 0:02:56]} 5. g3 {[%clk 0:02:59]}  Bg4 {[%clk 0:02:55]} 6. Bg2 {[%clk 0:02:59]}  Nd7 {[%clk 0:02:54]} 7. O-O {[%clk 0:02:58]}  e6 {[%clk 0:02:54]} 8. h3 {[%clk 0:02:57]}  Bxf3 {[%clk 0:02:54]} 9. Bxf3 {[%clk 0:02:58]}  Ne7 {[%clk 0:02:53]} 10. Bg2 {[%clk 0:02:58]}  O-O {[%clk 0:02:54]} 11. c3 {[%clk 0:02:56]}  f5 {[%clk 0:02:55]} 12. Re1 {[%clk 0:02:42]}  fxe4 {[%clk 0:02:54]} 13. dxe4 {[%clk 0:02:42]}  Kh8 {[%clk 0:02:22]} 14. exd5 {[%clk 0:02:35]}  Nxd5 {[%clk 0:02:23]} 15. Nd2 {[%clk 0:02:31]}  e5 {[%clk 0:02:18]} 16. Ne4 {[%clk 0:02:30]}  Qb6 {[%clk 0:02:17]} 17. Bg5 {[%clk 0:02:08]}  Rae8 {[%clk 0:02:13]} 18. Rad1 {[%clk 0:02:07]}  Nc5 {[%clk 0:02:10]} 19. Nd6 {[%clk 0:01:55]}  Re6 {[%clk 0:02:10]} 20. Nc4 {[%clk 0:01:54]}  Qa6 {[%clk 0:02:03]} 21. Bxd5 {[%clk 0:01:52]}  cxd5 {[%clk 0:02:01]} 22. Rxd5 {[%clk 0:01:53]}  b6 {[%clk 0:01:59]} 23. Nxe5 {[%clk 0:01:21]}  Qxa2 {[%clk 0:01:44]} 24. Rxc5 {[%clk 0:01:20]}  Rfe8 {[%clk 0:01:19]} 25. Qc4 {[%clk 0:00:48]}  Qxc4 {[%clk 0:01:02]} 26. Rxc4 {[%clk 0:00:48]}  Bxe5 {[%clk 0:00:59]} 27. Rce4 {[%clk 0:00:45]}  Kg7 {[%clk 0:00:51]} 28. Bf4 {[%clk 0:00:40]}  Kf6 {[%clk 0:00:49]} 29. Bxe5+ {[%clk 0:00:38]}  Rxe5 {[%clk 0:00:50]} 30. Rxe5 {[%clk 0:00:32]}  Rxe5 {[%clk 0:00:51]} 31. Rxe5 {[%clk 0:00:32]}  Kxe5 {[%clk 0:00:52]} 32. Kf1 {[%clk 0:00:31]}  a5 {[%clk 0:00:49]} 33. Ke2 {[%clk 0:00:31]}  g5 {[%clk 0:00:46]} 34. Ke3 {[%clk 0:00:31]}  b5 {[%clk 0:00:44]} 35. f4+ {[%clk 0:00:31]}  gxf4+ {[%clk 0:00:44]} 36. gxf4+ {[%clk 0:00:32]}  Kf5 {[%clk 0:00:45]} 37. Kf3 {[%clk 0:00:31]}  h6 {[%clk 0:00:30]} 38. Ke3 {[%clk 0:00:31]}  h5 {[%clk 0:00:30]} 39. Kf3 {[%clk 0:00:31]} 1-0


[Site "https://www.chess.com"]

[Event "Titled Tuesday Blitz February 15 Early 2022"]
[White "Sankalp Gupta"]
[Black "Musovic, Armin"]
[WhiteFideId "5097010"]
[BlackFideId "939935"]
[WhiteElo "2395"]
[BlackElo "2250"]
[Result "1-0"]
[Round "02"]
[TimeControl "180+1"]
[Date "2022.02.15"]
[WhiteClock "0:00:07"]
[BlackClock "0:00:12"]

1. b3 {[%clk 0:03:00]}  Nf6 {[%clk 0:02:59]} 2. Bb2 {[%clk 0:03:01]}  d5 {[%clk 0:03:00]} 3. e3 {[%clk 0:03:01]}  Bg4 {[%clk 0:03:00]} 4. Be2 {[%clk 0:03:00]}  Bxe2 {[%clk 0:03:01]} 5. Qxe2 {[%clk 0:03:01]}  a6 {[%clk 0:03:02]} 6. d3 {[%clk 0:03:01]}  g6 {[%clk 0:03:02]} 7. e4 {[%clk 0:03:00]}  Bg7 {[%clk 0:02:59]} 8. Nd2 {[%clk 0:02:56]}  Nc6 {[%clk 0:02:56]} 9. O-O-O {[%clk 0:02:54]}  O-O {[%clk 0:02:41]} 10. e5 {[%clk 0:02:53]}  Nd7 {[%clk 0:02:38]} 11. f4 {[%clk 0:02:54]}  a5 {[%clk 0:02:34]} 12. h4 {[%clk 0:02:48]}  a4 {[%clk 0:02:28]} 13. h5 {[%clk 0:02:48]}  Nc5 {[%clk 0:02:23]} 14. Qg4 {[%clk 0:02:36]}  Qc8 {[%clk 0:02:12]} 15. Qh4 {[%clk 0:02:32]}  h6 {[%clk 0:01:25]} 16. g4 {[%clk 0:02:17]}  Nb4 {[%clk 0:01:10]} 17. Kb1 {[%clk 0:02:07]}  Nxa2 {[%clk 0:01:08]} 18. Kxa2 {[%clk 0:02:08]}  axb3+ {[%clk 0:01:07]} 19. Kb1 {[%clk 0:02:09]}  bxc2+ {[%clk 0:01:07]} 20. Kxc2 {[%clk 0:02:10]}  Qd7 {[%clk 0:01:07]} 21. Rh3 {[%clk 0:01:22]}  Qa4+ {[%clk 0:00:39]} 22. Kc1 {[%clk 0:01:21]}  Qb5 {[%clk 0:00:39]} 23. Nb1 {[%clk 0:00:18]}  Ra2 {[%clk 0:00:33]} 24. Qf2 {[%clk 0:00:09]}  Nb3+ {[%clk 0:00:28]} 25. Kc2 {[%clk 0:00:09]}  c5 {[%clk 0:00:28]} 26. Nf3 {[%clk 0:00:05]}  Rc8 {[%clk 0:00:27]} 27. Nc3 {[%clk 0:00:04]}  Nd4+ {[%clk 0:00:27]} 28. Kc1 {[%clk 0:00:04]}  Qb3 {[%clk 0:00:21]} 29. Nxa2 {[%clk 0:00:04]}  Qxa2 {[%clk 0:00:16]} 30. Rd2 {[%clk 0:00:04]}  Nb3+ {[%clk 0:00:16]} 31. Kd1 {[%clk 0:00:05]}  Nxd2 {[%clk 0:00:15]} 32. Qxd2 {[%clk 0:00:06]}  c4 {[%clk 0:00:14]} 33. d4 {[%clk 0:00:06]}  c3 {[%clk 0:00:14]} 34. Bxc3 {[%clk 0:00:06]}  Qb3+ {[%clk 0:00:14]} 35. Qc2 {[%clk 0:00:06]}  Rxc3 {[%clk 0:00:13]} 36. Qxb3 {[%clk 0:00:06]}  Rxb3 {[%clk 0:00:14]} 37. hxg6 {[%clk 0:00:05]}  fxg6 {[%clk 0:00:14]} 38. Ke2 {[%clk 0:00:06]}  b5 {[%clk 0:00:13]} 39. Rh1 {[%clk 0:00:06]}  Rb2+ {[%clk 0:00:13]} 40. Ke3 {[%clk 0:00:06]}  Rb3+ {[%clk 0:00:14]} 41. Kf2 {[%clk 0:00:06]}  b4 {[%clk 0:00:13]} 42. Ra1 {[%clk 0:00:04]}  Ra3 {[%clk 0:00:13]} 43. Rb1 {[%clk 0:00:04]}  b3 {[%clk 0:00:13]} 44. Nd2 {[%clk 0:00:05]}  Ra2 {[%clk 0:00:12]} 45. Ke2 {[%clk 0:00:05]}  b2 {[%clk 0:00:13]} 46. Kd3 {[%clk 0:00:06]}  h5 {[%clk 0:00:13]} 47. g5 {[%clk 0:00:05]}  e6 {[%clk 0:00:12]} 48. Kc2 {[%clk 0:00:05]}  Bf8 {[%clk 0:00:11]} 49. Rxb2 {[%clk 0:00:03]}  Rxb2+ {[%clk 0:00:11]} 50. Kxb2 {[%clk 0:00:04]}  h4 {[%clk 0:00:12]} 51. Nf3 {[%clk 0:00:04]}  h3 {[%clk 0:00:13]} 52. Kc2 {[%clk 0:00:05]}  Bb4 {[%clk 0:00:11]} 53. Kd3 {[%clk 0:00:05]}  Be1 {[%clk 0:00:10]} 54. Ke2 {[%clk 0:00:05]}  Bg3 {[%clk 0:00:10]} 55. Kf1 {[%clk 0:00:03]}  Bxf4 {[%clk 0:00:10]} 56. Kg1 {[%clk 0:00:02]}  Kf7 {[%clk 0:00:11]} 57. Kh1 {[%clk 0:00:02]}  Ke7 {[%clk 0:00:11]} 58. Kg1 {[%clk 0:00:02]}  Kd7 {[%clk 0:00:11]} 59. Kh1 {[%clk 0:00:03]}  Kc6 {[%clk 0:00:11]} 60. Nh4 {[%clk 0:00:03]}  Bxg5 {[%clk 0:00:11]} 61. Nxg6 {[%clk 0:00:04]}  Kb5 {[%clk 0:00:11]} 62. Nf8 {[%clk 0:00:04]}  Kc4 {[%clk 0:00:10]} 63. Nxe6 {[%clk 0:00:05]}  Be7 {[%clk 0:00:10]} 64. Kh2 {[%clk 0:00:05]}  Kd3 {[%clk 0:00:10]} 65. Kxh3 {[%clk 0:00:05]}  Ke4 {[%clk 0:00:11]} 66. Kg4 {[%clk 0:00:06]}  Ba3 {[%clk 0:00:10]} 67. Kg5 {[%clk 0:00:06]}  Be7+ {[%clk 0:00:10]} 68. Kg6 {[%clk 0:00:06]}  Bh4 {[%clk 0:00:11]} 69. Kf7 {[%clk 0:00:04]}  Kd3 {[%clk 0:00:11]} 70. Ke8 {[%clk 0:00:04]}  Kc4 {[%clk 0:00:12]} 71. Kd7 {[%clk 0:00:04]}  Bf2 {[%clk 0:00:09]} 72. Kd6 {[%clk 0:00:04]}  Bxd4 {[%clk 0:00:08]} 73. Nxd4 {[%clk 0:00:05]}  Kxd4 {[%clk 0:00:09]} 74. e6 {[%clk 0:00:05]}  Kc4 {[%clk 0:00:10]} 75. e7 {[%clk 0:00:06]}  d4 {[%clk 0:00:11]} 76. e8=Q {[%clk 0:00:07]}  d3 {[%clk 0:00:12]} 77. Qe1 {[%clk 0:00:07]} 1-0


[Site "https://www.chess.com"]

[Event "Titled Tuesday Blitz February 15 Early 2022"]
[White "Shevtchenko, Olesya"]
[Black "Hamitevici, Vladimir"]
[WhiteFideId "24131890"]
[BlackFideId "13902393"]
[WhiteElo "2003"]
[BlackElo "2359"]
[Result "1-0"]
[Round "02"]
[TimeControl "180+1"]
[Date "2022.02.15"]
[WhiteClock "0:00:19"]
[BlackClock "0:00:03"]

1. e4 {[%clk 0:03:00]}  c6 {[%clk 0:02:56]} 2. d4 {[%clk 0:02:57]}  d5 {[%clk 0:02:57]} 3. exd5 {[%clk 0:02:58]}  cxd5 {[%clk 0:02:57]} 4. c4 {[%clk 0:02:59]}  Nf6 {[%clk 0:02:56]} 5. Nc3 {[%clk 0:02:58]}  g6 {[%clk 0:02:57]} 6. Qb3 {[%clk 0:02:55]}  Bg7 {[%clk 0:02:57]} 7. cxd5 {[%clk 0:02:56]}  O-O {[%clk 0:02:57]} 8. g3 {[%clk 0:02:55]}  Na6 {[%clk 0:02:44]} 9. Bg2 {[%clk 0:02:53]}  b5 {[%clk 0:02:30]} 10. Nge2 {[%clk 0:02:45]}  b4 {[%clk 0:02:18]} 11. Na4 {[%clk 0:02:39]}  Bb7 {[%clk 0:02:13]} 12. O-O {[%clk 0:02:20]}  Bxd5 {[%clk 0:02:08]} 13. Bxd5 {[%clk 0:02:19]}  Qxd5 {[%clk 0:02:00]} 14. Be3 {[%clk 0:02:19]}  Qf3 {[%clk 0:01:49]} 15. Nf4 {[%clk 0:02:05]}  g5 {[%clk 0:01:35]} 16. Ng2 {[%clk 0:01:45]}  h6 {[%clk 0:01:32]} 17. Rac1 {[%clk 0:01:26]}  Qf5 {[%clk 0:01:13]} 18. Nc5 {[%clk 0:01:22]}  Nc7 {[%clk 0:01:03]} 19. Qxb4 {[%clk 0:01:18]}  Qh3 {[%clk 0:01:00]} 20. f3 {[%clk 0:01:15]}  Ncd5 {[%clk 0:01:00]} 21. Qd2 {[%clk 0:01:13]}  Nxe3 {[%clk 0:00:57]} 22. Qxe3 {[%clk 0:01:13]}  Rad8 {[%clk 0:00:54]} 23. Rfd1 {[%clk 0:01:10]}  Nd5 {[%clk 0:00:52]} 24. Qe4 {[%clk 0:01:01]}  f5 {[%clk 0:00:37]} 25. Qe6+ {[%clk 0:00:56]}  Kh8 {[%clk 0:00:36]} 26. Nd7 {[%clk 0:00:57]}  Nb4 {[%clk 0:00:18]} 27. Nxf8 {[%clk 0:00:52]}  Rxf8 {[%clk 0:00:18]} 28. Rc8 {[%clk 0:00:50]}  Qh5 {[%clk 0:00:12]} 29. Qxf5 {[%clk 0:00:46]}  Rxc8 {[%clk 0:00:10]} 30. Qxc8+ {[%clk 0:00:46]}  Kh7 {[%clk 0:00:11]} 31. Qf5+ {[%clk 0:00:46]}  Kh8 {[%clk 0:00:11]} 32. Rc1 {[%clk 0:00:45]}  Bxd4+ {[%clk 0:00:09]} 33. Kf1 {[%clk 0:00:42]}  Bf6 {[%clk 0:00:09]} 34. Rc8+ {[%clk 0:00:31]}  Kg7 {[%clk 0:00:09]} 35. Qg4 {[%clk 0:00:31]}  Qf7 {[%clk 0:00:08]} 36. Qxb4 {[%clk 0:00:30]}  Qxa2 {[%clk 0:00:08]} 37. Qc4 {[%clk 0:00:27]}  Qa1+ {[%clk 0:00:07]} 38. Ne1 {[%clk 0:00:25]}  Bxb2 {[%clk 0:00:05]} 39. Rg8+ {[%clk 0:00:23]}  Kf6 {[%clk 0:00:06]} 40. Qc6+ {[%clk 0:00:22]}  e6 {[%clk 0:00:06]} 41. Qe8 {[%clk 0:00:19]}  Bc3 {[%clk 0:00:04]} 42. Rg6+ {[%clk 0:00:18]}  Kf5 {[%clk 0:00:03]} 43. Qxe6# {[%clk 0:00:19]} 1-0


[Site "https://www.chess.com"]

[Event "Titled Tuesday Blitz February 15 Early 2022"]
[White "Sliwicki, Damian"]
[Black "Harish, Neeraj"]
[WhiteFideId "1127128"]
[BlackFideId "30958130"]
[WhiteElo "2084"]
[BlackElo "1545"]
[Result "1/2-1/2"]
[Round "02"]
[TimeControl "180+1"]
[Date "2022.02.15"]
[WhiteClock "0:00:18"]
[BlackClock "0:00:34"]

1. e4 {[%clk 0:02:54]}  c5 {[%clk 0:02:57]} 2. Nf3 {[%clk 0:02:53]}  d6 {[%clk 0:02:56]} 3. d4 {[%clk 0:02:54]}  cxd4 {[%clk 0:02:56]} 4. Qxd4 {[%clk 0:02:54]}  Nf6 {[%clk 0:02:54]} 5. Bg5 {[%clk 0:02:55]}  Nc6 {[%clk 0:02:44]} 6. Bb5 {[%clk 0:02:54]}  Bd7 {[%clk 0:02:43]} 7. Bxc6 {[%clk 0:02:55]}  Bxc6 {[%clk 0:02:44]} 8. Nc3 {[%clk 0:02:55]}  e5 {[%clk 0:02:22]} 9. Qd3 {[%clk 0:02:54]}  Be7 {[%clk 0:02:17]} 10. Rd1 {[%clk 0:02:53]}  Qa5 {[%clk 0:02:12]} 11. O-O {[%clk 0:02:51]}  Rd8 {[%clk 0:02:08]} 12. Nh4 {[%clk 0:02:34]}  g6 {[%clk 0:01:18]} 13. Qf3 {[%clk 0:02:18]}  Nh5 {[%clk 0:00:58]} 14. Bxe7 {[%clk 0:02:09]}  Kxe7 {[%clk 0:00:59]} 15. Nf5+ {[%clk 0:01:39]}  gxf5 {[%clk 0:00:55]} 16. Qxh5 {[%clk 0:01:35]}  fxe4 {[%clk 0:00:47]} 17. Qf5 {[%clk 0:01:21]}  Rhg8 {[%clk 0:00:30]} 18. g3 {[%clk 0:01:05]}  Rg6 {[%clk 0:00:25]} 19. Nxe4 {[%clk 0:00:56]}  Bxe4 {[%clk 0:00:26]} 20. Qxe4 {[%clk 0:00:57]}  Kf8 {[%clk 0:00:26]} 21. Qxb7 {[%clk 0:00:55]}  d5 {[%clk 0:00:23]} 22. Rfe1 {[%clk 0:00:51]}  Re6 {[%clk 0:00:21]} 23. b4 {[%clk 0:00:44]}  Qb6 {[%clk 0:00:19]} 24. Qxb6 {[%clk 0:00:38]}  axb6 {[%clk 0:00:20]} 25. Rd2 {[%clk 0:00:32]}  d4 {[%clk 0:00:19]} 26. Red1 {[%clk 0:00:29]}  Red6 {[%clk 0:00:19]} 27. f3 {[%clk 0:00:28]}  f6 {[%clk 0:00:19]} 28. Kf2 {[%clk 0:00:28]}  Kf7 {[%clk 0:00:20]} 29. c3 {[%clk 0:00:28]}  Ke6 {[%clk 0:00:18]} 30. cxd4 {[%clk 0:00:28]}  Rxd4 {[%clk 0:00:18]} 31. Rxd4 {[%clk 0:00:21]}  exd4 {[%clk 0:00:19]} 32. Ke2 {[%clk 0:00:21]}  Kd5 {[%clk 0:00:18]} 33. Kd3 {[%clk 0:00:21]}  Rc8 {[%clk 0:00:19]} 34. f4 {[%clk 0:00:19]}  Rc3+ {[%clk 0:00:18]} 35. Kd2 {[%clk 0:00:19]}  Kc4 {[%clk 0:00:19]} 36. Rb1 {[%clk 0:00:17]}  Rd3+ {[%clk 0:00:19]} 37. Ke2 {[%clk 0:00:17]}  Rc3 {[%clk 0:00:20]} 38. a4 {[%clk 0:00:16]}  d3+ {[%clk 0:00:20]} 39. Ke3 {[%clk 0:00:16]}  Rc2 {[%clk 0:00:20]} 40. a5 {[%clk 0:00:15]}  d2 {[%clk 0:00:20]} 41. axb6 {[%clk 0:00:12]}  Rc1 {[%clk 0:00:20]} 42. Kxd2 {[%clk 0:00:11]}  Rxb1 {[%clk 0:00:20]} 43. b7 {[%clk 0:00:12]}  Rxb4 {[%clk 0:00:21]} 44. Ke3 {[%clk 0:00:04]}  Rxb7 {[%clk 0:00:20]} 45. Ke4 {[%clk 0:00:05]}  Rb2 {[%clk 0:00:20]} 46. h4 {[%clk 0:00:05]}  Rg2 {[%clk 0:00:20]} 47. Kf5 {[%clk 0:00:06]}  Rxg3 {[%clk 0:00:20]} 48. Kxf6 {[%clk 0:00:06]}  Kd4 {[%clk 0:00:20]} 49. f5 {[%clk 0:00:04]}  Kd5 {[%clk 0:00:20]} 50. h5 {[%clk 0:00:03]}  h6 {[%clk 0:00:19]} 51. Kf7 {[%clk 0:00:03]}  Rg5 {[%clk 0:00:19]} 52. f6 {[%clk 0:00:03]}  Ke5 {[%clk 0:00:19]} 53. Ke7 {[%clk 0:00:03]}  Rf5 {[%clk 0:00:19]} 54. f7 {[%clk 0:00:03]}  Rxf7+ {[%clk 0:00:18]} 55. Kxf7 {[%clk 0:00:03]}  Kf5 {[%clk 0:00:19]} 56. Ke7 {[%clk 0:00:02]}  Kg5 {[%clk 0:00:20]} 57. Ke6 {[%clk 0:00:03]}  Kxh5 {[%clk 0:00:21]} 58. Kf5 {[%clk 0:00:04]}  Kh4 {[%clk 0:00:21]} 59. Kf4 {[%clk 0:00:05]}  h5 {[%clk 0:00:22]} 60. Kf3 {[%clk 0:00:06]}  Kh3 {[%clk 0:00:23]} 61. Kf2 {[%clk 0:00:06]}  h4 {[%clk 0:00:23]} 62. Kg1 {[%clk 0:00:06]}  Kg3 {[%clk 0:00:24]} 63. Kh1 {[%clk 0:00:07]}  h3 {[%clk 0:00:24]} 64. Kg1 {[%clk 0:00:08]}  Kh4 {[%clk 0:00:25]} 65. Kh1 {[%clk 0:00:09]}  Kg4 {[%clk 0:00:26]} 66. Kg1 {[%clk 0:00:10]}  Kg3 {[%clk 0:00:27]} 67. Kh1 {[%clk 0:00:11]}  Kh4 {[%clk 0:00:27]} 68. Kg1 {[%clk 0:00:12]}  Kg4 {[%clk 0:00:28]} 69. Kh1 {[%clk 0:00:13]}  Kg3 {[%clk 0:00:29]} 70. Kg1 {[%clk 0:00:14]}  Kh4 {[%clk 0:00:30]} 71. Kh1 {[%clk 0:00:14]}  Kg4 {[%clk 0:00:31]} 72. Kg1 {[%clk 0:00:15]}  Kg3 {[%clk 0:00:32]} 73. Kh1 {[%clk 0:00:16]}  Kh4 {[%clk 0:00:33]} 74. Kg1 {[%clk 0:00:17]}  Kg4 {[%clk 0:00:33]} 75. Kh1 {[%clk 0:00:18]}  Kg3 {[%clk 0:00:34]} 1/2-1/2


[Site "https://www.chess.com"]

[Event "Titled Tuesday Blitz February 15 Early 2022"]
[White "Soderstrom, Adrian"]
[Black "Samaganova, Aleksandra"]
[WhiteFideId "1745786"]
[BlackFideId "13800221"]
[WhiteElo "2107"]
[BlackElo "1859"]
[Result "1/2-1/2"]
[Round "02"]
[TimeControl "180+1"]
[Date "2022.02.15"]
[WhiteClock "0:00:07"]
[BlackClock "0:00:05"]

1. e4 {[%clk 0:03:00]}  c5 {[%clk 0:02:56]} 2. d4 {[%clk 0:03:00]}  cxd4 {[%clk 0:02:55]} 3. c3 {[%clk 0:03:01]}  Nf6 {[%clk 0:02:55]} 4. e5 {[%clk 0:03:00]}  Nd5 {[%clk 0:02:55]} 5. Nf3 {[%clk 0:02:57]}  e6 {[%clk 0:02:51]} 6. cxd4 {[%clk 0:02:56]}  d6 {[%clk 0:02:48]} 7. Bc4 {[%clk 0:02:55]}  Nc6 {[%clk 0:02:45]} 8. O-O {[%clk 0:02:54]}  Be7 {[%clk 0:02:41]} 9. exd6 {[%clk 0:02:53]}  Qxd6 {[%clk 0:02:40]} 10. Nc3 {[%clk 0:02:54]}  O-O {[%clk 0:02:31]} 11. Re1 {[%clk 0:02:52]}  Nf6 {[%clk 0:02:21]} 12. Bg5 {[%clk 0:02:41]}  a6 {[%clk 0:02:10]} 13. d5 {[%clk 0:02:06]}  Nxd5 {[%clk 0:01:44]} 14. Nxd5 {[%clk 0:02:07]}  exd5 {[%clk 0:01:37]} 15. Bxd5 {[%clk 0:02:08]}  Rd8 {[%clk 0:00:47]} 16. Bb3 {[%clk 0:01:31]}  Qxd1 {[%clk 0:00:32]} 17. Raxd1 {[%clk 0:01:32]}  Rxd1 {[%clk 0:00:25]} 18. Bxd1 {[%clk 0:01:31]}  f6 {[%clk 0:00:21]} 19. Bb3+ {[%clk 0:01:30]}  Kf8 {[%clk 0:00:20]} 20. Bf4 {[%clk 0:01:27]}  Bf5 {[%clk 0:00:16]} 21. Bd5 {[%clk 0:01:22]}  Rd8 {[%clk 0:00:14]} 22. Bxc6 {[%clk 0:01:04]}  bxc6 {[%clk 0:00:15]} 23. Be3 {[%clk 0:01:05]}  g5 {[%clk 0:00:09]} 24. Rc1 {[%clk 0:01:03]}  Be4 {[%clk 0:00:08]} 25. Nd4 {[%clk 0:01:02]}  Rd6 {[%clk 0:00:04]} 26. f3 {[%clk 0:01:00]}  Bd5 {[%clk 0:00:04]} 27. Nf5 {[%clk 0:00:57]}  Re6 {[%clk 0:00:04]} 28. Kf2 {[%clk 0:00:52]}  Kf7 {[%clk 0:00:04]} 29. b3 {[%clk 0:00:52]}  Bf8 {[%clk 0:00:04]} 30. Bc5 {[%clk 0:00:47]}  Bxc5+ {[%clk 0:00:03]} 31. Rxc5 {[%clk 0:00:48]}  Kg6 {[%clk 0:00:04]} 32. Ne3 {[%clk 0:00:48]}  Rd6 {[%clk 0:00:04]} 33. Nc2 {[%clk 0:00:37]}  f5 {[%clk 0:00:04]} 34. Nb4 {[%clk 0:00:37]}  a5 {[%clk 0:00:04]} 35. Nd3 {[%clk 0:00:37]}  a4 {[%clk 0:00:03]} 36. bxa4 {[%clk 0:00:36]}  Bxa2 {[%clk 0:00:03]} 37. Rxc6 {[%clk 0:00:35]}  Rxc6 {[%clk 0:00:03]} 38. Ne5+ {[%clk 0:00:36]}  Kf6 {[%clk 0:00:04]} 39. Nxc6 {[%clk 0:00:37]}  Bb3 {[%clk 0:00:04]} 40. a5 {[%clk 0:00:37]}  Bc4 {[%clk 0:00:04]} 41. Ke3 {[%clk 0:00:32]}  Ke6 {[%clk 0:00:03]} 42. Nd4+ {[%clk 0:00:31]}  Ke5 {[%clk 0:00:03]} 43. Nc6+ {[%clk 0:00:20]}  Kd6 {[%clk 0:00:03]} 44. Nb4 {[%clk 0:00:20]}  f4+ {[%clk 0:00:03]} 45. Ke4 {[%clk 0:00:19]}  Bf1 {[%clk 0:00:04]} 46. g3 {[%clk 0:00:19]}  fxg3 {[%clk 0:00:04]} 47. hxg3 {[%clk 0:00:20]}  Bg2 {[%clk 0:00:03]} 48. Ke3 {[%clk 0:00:20]}  g4 {[%clk 0:00:03]} 49. fxg4 {[%clk 0:00:19]}  Ke5 {[%clk 0:00:03]} 50. Nd3+ {[%clk 0:00:19]}  Kf6 {[%clk 0:00:03]} 51. Nf4 {[%clk 0:00:19]}  Ba8 {[%clk 0:00:04]} 52. Kd4 {[%clk 0:00:19]}  Kg5 {[%clk 0:00:04]} 53. Ne6+ {[%clk 0:00:15]}  Kxg4 {[%clk 0:00:05]} 54. Nc7 {[%clk 0:00:15]}  Bg2 {[%clk 0:00:04]} 55. Ne8 {[%clk 0:00:15]}  Kxg3 {[%clk 0:00:04]} 56. Nf6 {[%clk 0:00:15]}  h6 {[%clk 0:00:04]} 57. Ke5 {[%clk 0:00:16]}  Ba8 {[%clk 0:00:04]} 58. Kf5 {[%clk 0:00:15]}  Kh4 {[%clk 0:00:04]} 59. Kg6 {[%clk 0:00:15]}  h5 {[%clk 0:00:03]} 60. Nxh5 {[%clk 0:00:16]}  Be4+ {[%clk 0:00:04]} 61. Kh6 {[%clk 0:00:16]}  Bf3 {[%clk 0:00:04]} 62. Nf6 {[%clk 0:00:17]}  Ba8 {[%clk 0:00:04]} 63. Kg6 {[%clk 0:00:17]}  Kg3 {[%clk 0:00:03]} 64. Kf5 {[%clk 0:00:18]}  Kf3 {[%clk 0:00:03]} 65. Ke5 {[%clk 0:00:18]}  Ke3 {[%clk 0:00:03]} 66. Nd5+ {[%clk 0:00:18]}  Kd3 {[%clk 0:00:02]} 67. Nb6 {[%clk 0:00:18]}  Bh1 {[%clk 0:00:03]} 68. Kd6 {[%clk 0:00:17]}  Kd4 {[%clk 0:00:03]} 69. a6 {[%clk 0:00:15]}  Bg2 {[%clk 0:00:01]} 70. Nd7 {[%clk 0:00:12]}  Kc4 {[%clk 0:00:01]} 71. Kc7 {[%clk 0:00:09]}  Kb5 {[%clk 0:00:01]} 72. a7 {[%clk 0:00:07]}  Ka6 {[%clk 0:00:01]} 73. Kb8 {[%clk 0:00:07]}  Bf3 {[%clk 0:00:02]} 74. Ne5 {[%clk 0:00:06]}  Be4 {[%clk 0:00:02]} 75. Nc4 {[%clk 0:00:07]}  Bg2 {[%clk 0:00:01]} 76. Nd6 {[%clk 0:00:07]}  Bf3 {[%clk 0:00:01]} 77. Ne8 {[%clk 0:00:07]}  Bg2 {[%clk 0:00:02]} 78. Nc7+ {[%clk 0:00:08]}  Kb6 {[%clk 0:00:01]} 79. Ne6 {[%clk 0:00:05]}  Bf3 {[%clk 0:00:02]} 80. Nd4 {[%clk 0:00:05]}  Bg2 {[%clk 0:00:02]} 81. Nf5 {[%clk 0:00:05]}  Ka6 {[%clk 0:00:03]} 82. Nd6 {[%clk 0:00:05]}  Bf3 {[%clk 0:00:03]} 83. Nc8 {[%clk 0:00:05]}  Bg2 {[%clk 0:00:03]} 84. Ne7 {[%clk 0:00:06]}  Bf3 {[%clk 0:00:03]} 85. Nf5 {[%clk 0:00:07]}  Bg2 {[%clk 0:00:03]} 86. Nd4 {[%clk 0:00:07]}  Be4 {[%clk 0:00:03]} 87. Nb3 {[%clk 0:00:07]}  Bh1 {[%clk 0:00:03]} 88. Nc5+ {[%clk 0:00:07]}  Kb6 {[%clk 0:00:03]} 89. Na4+ {[%clk 0:00:08]}  Ka6 {[%clk 0:00:04]} 90. Nb2 {[%clk 0:00:08]}  Kb6 {[%clk 0:00:04]} 91. Nc4+ {[%clk 0:00:07]}  Ka6 {[%clk 0:00:04]} 92. Nd6 {[%clk 0:00:07]}  Kb6 {[%clk 0:00:05]} 93. Nc8+ {[%clk 0:00:08]}  Ka6 {[%clk 0:00:05]} 94. Kc7 {[%clk 0:00:08]}  Bg2 {[%clk 0:00:04]} 95. Kb8 {[%clk 0:00:07]}  Bh1 {[%clk 0:00:04]} 96. Ne7 {[%clk 0:00:07]}  Bg2 {[%clk 0:00:04]} 97. Nf5 {[%clk 0:00:08]}  Bh1 {[%clk 0:00:04]} 98. Ne3 {[%clk 0:00:08]}  Bf3 {[%clk 0:00:04]} 99. Nc4 {[%clk 0:00:08]}  Bh1 {[%clk 0:00:04]} 100. Nd6 {[%clk 0:00:09]}  Bg2 {[%clk 0:00:04]} 101. Ne8 {[%clk 0:00:07]}  Bh1 {[%clk 0:00:05]} 102. Nc7+ {[%clk 0:00:08]}  Kb6 {[%clk 0:00:04]} 103. Ne6 {[%clk 0:00:08]}  Ka6 {[%clk 0:00:04]} 104. Nd4 {[%clk 0:00:08]}  Kb6 {[%clk 0:00:05]} 105. Nb3 {[%clk 0:00:08]}  Ka6 {[%clk 0:00:05]} 106. Nc5+ {[%clk 0:00:08]}  Kb6 {[%clk 0:00:05]} 107. Na4+ {[%clk 0:00:08]}  Ka6 {[%clk 0:00:06]} 108. a8=Q+ {[%clk 0:00:07]}  Bxa8 {[%clk 0:00:05]} 1/2-1/2


[Site "https://www.chess.com"]